Workbook

Sheet Quick Start
Z1: feet
Z2: 1
Z3: 1
Z4: 4
Z5: FALSE
Z6: 50
Z7: =($Z$6*2/100) -> 1
Z8: =IF(AND(Z4=2,Z3=3),2,IF(AND(Z4=4,Z3=3),1.04,IF(Z3=2,1.165,1))) -> 1
B9: DSP Setting Prediction | Z9: 141.0145334
B10: v1.3 | AA10: ->empty
B12: DATA INPUT
B13: Steered Bass Array Option | F13: Community VLF Presets
B14: Unit | F14: Using One VLF Steered Array Bracket
B15: Temperature | C15: 70 | D15: =IF(Z1="feet","F",IF(Z1="meter","C","---")) -> F
B16: Speed of Sound | C16: =IF(Z1="feet",49.03*SQRT(459.4+C15),IF(Z1="meter",20.05*SQRT(273+C15),"---")) -> 1128.116267 | D16: =IF(Z1="feet","ft/s",IF(Z1="meter","m/s","---")) -> ft/s
B17: Loudspeakers Quantity:
B18: Select one design guide: | F18: Using Two VLF Steered Array Bracket
D19: 24 | E19: =IF(Z1="feet","in",IF(Z1="meter","cm","---")) -> in
D20: =$C$32 -> 84.60872004 | E20: Hz
D21: =IF(D20="---","",IF(D20>600,"Too High","")) -> 
B22: Over-Delay Adjustment | C22: =$Z$7-1 -> 0 | E22: =IF(Z5=FALSE,"No","Yes") -> No | F22: Using Three VLF Steered Array Bracket
C23: 1.772866909
B24: Freq of Max Rear Attenuation +/- | D24: 70.5072667 | E24: Hz
F25: Using Four VLF Steered Array Bracket
B26: Polar Pattern
C32: =IF(AND($Z$2=1,$Z$1="feet"),0.6*$Z$8*$C$16/($Z$4*$D$19/12),IF(AND($Z$2=1,$Z$1="meter"),0.6*$Z$8*$C$16/($Z$4*$D$19/100),IF(AND($Z$2=2,$Z$1="feet"),(($C$16*12)/($Z$4*$D$20/($Z$8*0.6))),IF(AND($Z$2=2,$Z$1="meter"),(($C$16*100)/($Z$4*$D$20/(0.6*$Z$8))),"")))) -> 84.60872004
C33: Steered Bass Array Info
B36: Informational Article
B37: Calculator Spreadsheet
B38: Frequency Response Spreadsheet
B39: Notes and Instructions

Sheet Calculator
Z1: feet | AB1: 0
Z2: 5 | AB2: =AB1+15 -> 15
Z3: 50 | AB3: =AB2+15 -> 30
Z4: 6 | AB4: 45
Z5: 1 | AB5: 60
AA6: ->empty | AB6: 75
AB7: 90
B8: 2D Polar Prediction for Multiple Point Sources | AB8: 105
B9: v1.3 | AB9: 120
AB10: 135
AB11: 150
B12: Data Input | AB12: 165
B13: Unit | H13: Calculation Accuracy | AB13: 180
B14: Speed of Sound (air propagation) | C14: 1128.116267 | D14: =IF($Z$1="feet","ft/s", IF($Z$1="meters", "m/s","--")) -> ft/s | H14: Polar Result Parameters: | AB14: 195
B15: Distance to Listener/Microphone | C15: 40 | D15: =Z1 -> feet | E15: =IF(C15=0,"ERROR",IF(AND(Z1="feet", C15<15), "Too close", IF(AND(Z1="meters",C15<5),"Too close",""))) ->  | H15: Graph Range | N15: =Z3 -> 50 | O15: dB | AB15: 210
B16: Point of Origin (X) | C16: 0 | D16: =Z1 -> feet | E16: =IF($Z$1="feet",$C$16*12, IF($Z$1="meters", $C$16*100,"--")) -> 0 | F16: =IF(Z1="feet","inch(es)",IF(Z1="meters","cm","--")) -> inch(es) | H16: Graph Scale | AB16: 225
B17: Point of Origin (Y) | C17: 0 | D17: =Z1 -> feet | E17: =IF($Z$1="feet",$C$17*12, IF($Z$1="meters", $C$17*100,"--")) -> 0 | F17: =IF(Z1="feet","inch(es)",IF(Z1="meters","cm","--")) -> inch(es) | AB17: 240
B18: Point of Origin (Z) | C18: 0 | D18: =Z1 -> feet | E18: =IF($Z$1="feet",$C$18*12, IF($Z$1="meters", $C$18*100,"--")) -> 0 | F18: =IF(Z1="feet","inch(es)",IF(Z1="meters","cm","--")) -> inch(es) | H18: Graph View/Polar Axis | AB18: 255
AB19: =AB18+15 -> 270
B20: Sound Sources | C20: Phase shift | D20: =IF(Z1="feet","Position (in)",IF(Z1="meters","Position (cm)","--")) -> Position (in) | G20: Polarity | H20: Delay (ms) | I20: Attenuation | K20: Result | P20: =O32 -> Y | AB20: 285
C21: (deg) | D21: x | E21: y | F21: z | G21: +/- | I21: (dB) | AB21: 300
B22: Point Source 1 | C22: 0 | D22: 0 | E22: 0 | F22: 0 | H22: 0 | I22: 0 | AB22: 315
B23: Point Source 2 | C23: 0 | D23: 0 | E23: 0 | F23: 0 | H23: 0 | I23: 0 | AB23: 330
B24: Point Source 3 | C24: 0 | D24: 0 | E24: 0 | F24: 0 | H24: 0 | I24: 0 | K24: =R32 -> X | AB24: 345
B25: Point Source 4 | C25: 0 | D25: 0 | E25: 0 | F25: 0 | H25: 0 | I25: 0
B26: Point Source 5 | C26: 0 | D26: 0 | E26: 0 | F26: 0 | H26: 0 | I26: 0
B27: Point Source 6 | C27: 0 | D27: 0 | E27: 0 | F27: 0 | H27: 0 | I27: 0
B28: Point Source 7 | C28: 0 | D28: 0 | E28: 0 | F28: 0 | H28: 0 | I28: 0
B29: Point Source 8 | C29: 0 | D29: 0 | E29: 0 | F29: 0 | H29: 0 | I29: 0
B30: Point Source 9 | C30: 0 | D30: 0 | E30: 0 | F30: 0 | H30: 0 | I30: 0
B31: Point Source 10 | C31: 0 | D31: 0 | E31: 0 | F31: 0 | H31: 0 | I31: 0
M32: Horizontal Axis: | O32: =IF(Z5=1,"Y",IF(Z5=2,"Z",IF(Z5=3,"Z",""))) -> Y | P32: Vertical Axis: | R32: =IF(Z5=1,"X",IF(Z5=2,"Y",IF(Z5=3,"X",""))) -> X | U32: Positions of point sources from the table
B33: Frequency Selection (10-2000Hz) | H33: =IF(C34<1,"ERROR!!","") -> 
B34: Frequency to graph | C34: 100 | D34: Hz | E34: Average | H34: =IF(Z4=0,0,1/Z4) -> 0.1666666667 | I34: Octave
E35: Upper Frequency Limit | H35: =$C$34 * (2 ^ ($H$34 / 2)) -> 105.9463094 | I35: Hz
E36: Lower Frequency Limit | H36: =$C$34 * (2 ^ (-1*($H$34 / 2))) -> 94.38743127 | I36: Hz
B39: Calculate Multiple Frequencies
B40: Informational Article
B41: Frequency Response Spreadsheet
B42: Quick Start Spreadsheet
B43: Notes and Instructions
B61: Polar A Control Panel | D61: Polar A | O61: Polar B
B62: Frequencies to graph:
B63: 100 | C63: Hz
B64: 100 | C64: Hz
B65: 100 | C65: Hz
B73: Polar B Control Panel
B75: Frequencies to graph:
B76: 100 | C76: Hz
B77: 100 | C77: Hz
B78: 100 | C78: Hz
B84: Note on Calculate Frequency Button:
B85: 1. This function relies on Average (bandwidth)
B86: slider and frequency input in the calculator above.
B87: 2. Input values and results in Polar A and Polar B
B88: does not have any connections.
B92: Return to Top

Sheet Frequency Response
Z1: TRUE | BB1: 20
Z2: 2 | BB2: 20
B10: Frequency and Phase Response Calculator
B11: v1.3
B13: Note: This Spreadsheet utilized the data from 2D Polar Prediction for Multiple Point Sources spreadsheet
B15: Data Input
B16: Listener Position (X) | C16: 30 | D16: =Calculator!$Z$1 -> feet
B17: Listener Position (Y) | C17: 0 | D17: =Calculator!$Z$1 -> feet
B18: Listener Position (Z) | C18: 0 | D18: =Calculator!$Z$1 -> feet
B19: Smoothing | C19: NONE
B20: Number of Samples | C20: 128
B21: Sample Rate | C21: =C22*2 -> 1000
B22: Max Frequency to Plot | C22: 500 | D22: Hz
B23: Frequency Resolution | C23: =C21/C20 -> 7.8125 | D23: Hz
B24: Inverse Square Law | D24: =IF(Z1=TRUE,"Yes**","No**") -> Yes**
B25: Phase Response Reference Distance:
B33: =IF(Z1=TRUE,"**Inverse Square Law will result in error if one of the source location is too close to the listener","**Inverse Square law is not included, listener should be in farfield") -> **Inverse Square Law will result in error if one of the source location is too close to the listener
B36: Informational Article
B37: Calculator Spreadsheet
B38: Quick Start Spreadsheet
B39: Notes and Instructions
F54: Number of Samples (DFT):
F55: =IF($C$20=256,"Calculation time may exceed 20sec",IF($C$20=512,"Calculation time may exceed 1min","")) -> 

Sheet Sine Wave (hidden)
A1: Sine Wave Graph Tool | Q1: Phase Shift (rad) | R1: =D5*(PI())/180 -> 0 | U1: X | V1: Time | W1: Y | X1: Y2 | Z1: X axis
A2: Graph is limited to one period of the wave | Q2: Periode (ms) | R2: =1/D4 -> 0.01 | U2: 0 | V2: =(U2/360)*R$2 -> 0 | W2: =SIN((((2*PI())*$D$4)*($V2-($D$6/1000)))+$R$1) -> 0 | X2: =SIN((((2*PI())*$F$4)*($V2-($F$6/1000)))+$R$3) -> 0 | Z2: =1000*($U2/360)*$R$2 -> 0
A3: Fill in the green boxes | Q3: Phase Shift (rad) #2 | R3: =F5*(PI())/180 -> 0 | U3: 1 | V3: =(U3/360)*R$2 -> 2.777777778e-05 | W3: =SIN((((2*PI())*$D$4)*($V3-($D$6/1000)))+$R$1) -> 0.01745240644 | X3: =SIN((((2*PI())*$F$4)*($V3-($F$6/1000)))+$R$3) -> 0.01745240644 | Z3: =1000*($U3/360)*$R$2 -> 0.02777777778
C4: Frequency | D4: 100 | E4: Hz | F4: 100 | G4: Hz | Q4: Periode (ms) #2 | R4: =1/F4 -> 0.01 | U4: =U3+1 -> 2 | V4: 5.555555556e-05 | W4: 0.0348994967 | X4: 0.0348994967 | Z4: 0.05555555556
C5: Phase Shift | D5: 0 | E5: deg | F5: 0 | G5: deg | U5: =U4+1 -> 3 | V5: 8.333333333e-05 | W5: 0.05233595624 | X5: 0.05233595624 | Z5: 0.08333333333
C6: Delay | D6: 0 | E6: ms | F6: 0 | G6: ms | U6: 4 | V6: 0.0001111111111 | W6: 0.06975647374 | X6: 0.06975647374 | Z6: 0.1111111111
D7: 1 | F7: 2 | U7: 5 | V7: 0.0001388888889 | W7: 0.08715574275 | X7: 0.08715574275 | Z7: 0.1388888889
U8: 6 | V8: 0.0001666666667 | W8: 0.1045284633 | X8: 0.1045284633 | Z8: 0.1666666667
C9: Note: Graph Axis is determined by the first sine wave input | U9: 7 | V9: 0.0001944444444 | W9: 0.1218693434 | X9: 0.1218693434 | Z9: 0.1944444444
U10: 8 | V10: 0.0002222222222 | W10: 0.139173101 | X10: 0.139173101 | Z10: 0.2222222222
U11: 9 | V11: 0.00025 | W11: 0.156434465 | X11: 0.156434465 | Z11: 0.25
U12: 10 | V12: 0.0002777777778 | W12: 0.1736481777 | X12: 0.1736481777 | Z12: 0.2777777778
U13: 11 | V13: 0.0003055555556 | W13: 0.1908089954 | X13: 0.1908089954 | Z13: 0.3055555556
U14: 12 | V14: 0.0003333333333 | W14: 0.2079116908 | X14: 0.2079116908 | Z14: 0.3333333333
U15: 13 | V15: 0.0003611111111 | W15: 0.2249510543 | X15: 0.2249510543 | Z15: 0.3611111111
U16: 14 | V16: 0.0003888888889 | W16: 0.2419218956 | X16: 0.2419218956 | Z16: 0.3888888889
U17: 15 | V17: 0.0004166666667 | W17: 0.2588190451 | X17: 0.2588190451 | Z17: 0.4166666667
U18: 16 | V18: 0.0004444444444 | W18: 0.2756373558 | X18: 0.2756373558 | Z18: 0.4444444444
U19: 17 | V19: 0.0004722222222 | W19: 0.2923717047 | X19: 0.2923717047 | Z19: 0.4722222222
U20: 18 | V20: 0.0005 | W20: 0.3090169944 | X20: 0.3090169944 | Z20: 0.5
U21: 19 | V21: 0.0005277777778 | W21: 0.3255681545 | X21: 0.3255681545 | Z21: 0.5277777778
U22: 20 | V22: 0.0005555555556 | W22: 0.3420201433 | X22: 0.3420201433 | Z22: 0.5555555556
U23: 21 | V23: 0.0005833333333 | W23: 0.3583679495 | X23: 0.3583679495 | Z23: 0.5833333333
U24: 22 | V24: 0.0006111111111 | W24: 0.3746065934 | X24: 0.3746065934 | Z24: 0.6111111111
U25: 23 | V25: 0.0006388888889 | W25: 0.3907311285 | X25: 0.3907311285 | Z25: 0.6388888889
U26: 24 | V26: 0.0006666666667 | W26: 0.4067366431 | X26: 0.4067366431 | Z26: 0.6666666667
U27: 25 | V27: 0.0006944444444 | W27: 0.4226182617 | X27: 0.4226182617 | Z27: 0.6944444444
U28: 26 | V28: 0.0007222222222 | W28: 0.4383711468 | X28: 0.4383711468 | Z28: 0.7222222222
U29: 27 | V29: 0.00075 | W29: 0.4539904997 | X29: 0.4539904997 | Z29: 0.75
U30: 28 | V30: 0.0007777777778 | W30: 0.4694715628 | X30: 0.4694715628 | Z30: 0.7777777778
U31: 29 | V31: 0.0008055555556 | W31: 0.4848096202 | X31: 0.4848096202 | Z31: 0.8055555556
U32: 30 | V32: 0.0008333333333 | W32: 0.5 | X32: 0.5 | Z32: 0.8333333333
U33: 31 | V33: 0.0008611111111 | W33: 0.5150380749 | X33: 0.5150380749 | Z33: 0.8611111111
U34: 32 | V34: 0.0008888888889 | W34: 0.5299192642 | X34: 0.5299192642 | Z34: 0.8888888889
U35: 33 | V35: 0.0009166666667 | W35: 0.544639035 | X35: 0.544639035 | Z35: 0.9166666667
U36: 34 | V36: 0.0009444444444 | W36: 0.5591929035 | X36: 0.5591929035 | Z36: 0.9444444444
U37: 35 | V37: 0.0009722222222 | W37: 0.5735764364 | X37: 0.5735764364 | Z37: 0.9722222222
U38: 36 | V38: 0.001 | W38: 0.5877852523 | X38: 0.5877852523 | Z38: 1
U39: 37 | V39: 0.001027777778 | W39: 0.6018150232 | X39: 0.6018150232 | Z39: 1.027777778
U40: 38 | V40: 0.001055555556 | W40: 0.6156614753 | X40: 0.6156614753 | Z40: 1.055555556
U41: 39 | V41: 0.001083333333 | W41: 0.629320391 | X41: 0.629320391 | Z41: 1.083333333
U42: 40 | V42: 0.001111111111 | W42: 0.6427876097 | X42: 0.6427876097 | Z42: 1.111111111
U43: 41 | V43: 0.001138888889 | W43: 0.656059029 | X43: 0.656059029 | Z43: 1.138888889
U44: 42 | V44: 0.001166666667 | W44: 0.6691306064 | X44: 0.6691306064 | Z44: 1.166666667
U45: 43 | V45: 0.001194444444 | W45: 0.6819983601 | X45: 0.6819983601 | Z45: 1.194444444
U46: 44 | V46: 0.001222222222 | W46: 0.6946583705 | X46: 0.6946583705 | Z46: 1.222222222
U47: 45 | V47: 0.00125 | W47: 0.7071067812 | X47: 0.7071067812 | Z47: 1.25
U48: 46 | V48: 0.001277777778 | W48: 0.7193398003 | X48: 0.7193398003 | Z48: 1.277777778
U49: 47 | V49: 0.001305555556 | W49: 0.7313537016 | X49: 0.7313537016 | Z49: 1.305555556
U50: 48 | V50: 0.001333333333 | W50: 0.7431448255 | X50: 0.7431448255 | Z50: 1.333333333
U51: 49 | V51: 0.001361111111 | W51: 0.7547095802 | X51: 0.7547095802 | Z51: 1.361111111
U52: 50 | V52: 0.001388888889 | W52: 0.7660444431 | X52: 0.7660444431 | Z52: 1.388888889
U53: 51 | V53: 0.001416666667 | W53: 0.7771459615 | X53: 0.7771459615 | Z53: 1.416666667
U54: 52 | V54: 0.001444444444 | W54: 0.7880107536 | X54: 0.7880107536 | Z54: 1.444444444
U55: 53 | V55: 0.001472222222 | W55: 0.79863551 | X55: 0.79863551 | Z55: 1.472222222
U56: 54 | V56: 0.0015 | W56: 0.8090169944 | X56: 0.8090169944 | Z56: 1.5
U57: 55 | V57: 0.001527777778 | W57: 0.8191520443 | X57: 0.8191520443 | Z57: 1.527777778
U58: 56 | V58: 0.001555555556 | W58: 0.8290375726 | X58: 0.8290375726 | Z58: 1.555555556
U59: 57 | V59: 0.001583333333 | W59: 0.8386705679 | X59: 0.8386705679 | Z59: 1.583333333
U60: 58 | V60: 0.001611111111 | W60: 0.8480480962 | X60: 0.8480480962 | Z60: 1.611111111
U61: 59 | V61: 0.001638888889 | W61: 0.8571673007 | X61: 0.8571673007 | Z61: 1.638888889
U62: 60 | V62: 0.001666666667 | W62: 0.8660254038 | X62: 0.8660254038 | Z62: 1.666666667
U63: 61 | V63: 0.001694444444 | W63: 0.8746197071 | X63: 0.8746197071 | Z63: 1.694444444
U64: 62 | V64: 0.001722222222 | W64: 0.8829475929 | X64: 0.8829475929 | Z64: 1.722222222
U65: 63 | V65: 0.00175 | W65: 0.8910065242 | X65: 0.8910065242 | Z65: 1.75
U66: 64 | V66: 0.001777777778 | W66: 0.8987940463 | X66: 0.8987940463 | Z66: 1.777777778
U67: 65 | V67: =(U67/360)*R$2 -> 0.001805555556 | W67: =SIN((((2*PI())*$D$4)*($V67-($D$6/1000)))+$R$1) -> 0.906307787 | X67: =SIN((((2*PI())*$F$4)*($V67-($F$6/1000)))+$R$3) -> 0.906307787 | Z67: =1000*($U67/360)*$R$2 -> 1.805555556
U68: 66 | V68: 0.001833333333 | W68: 0.9135454576 | X68: 0.9135454576 | Z68: 1.833333333
U69: =U68+1 -> 67 | V69: 0.001861111111 | W69: 0.9205048535 | X69: 0.9205048535 | Z69: 1.861111111
U70: 68 | V70: 0.001888888889 | W70: 0.9271838546 | X70: 0.9271838546 | Z70: 1.888888889
U71: 69 | V71: 0.001916666667 | W71: 0.9335804265 | X71: 0.9335804265 | Z71: 1.916666667
U72: 70 | V72: 0.001944444444 | W72: 0.9396926208 | X72: 0.9396926208 | Z72: 1.944444444
U73: 71 | V73: 0.001972222222 | W73: 0.9455185756 | X73: 0.9455185756 | Z73: 1.972222222
U74: 72 | V74: 0.002 | W74: 0.9510565163 | X74: 0.9510565163 | Z74: 2
U75: 73 | V75: 0.002027777778 | W75: 0.956304756 | X75: 0.956304756 | Z75: 2.027777778
U76: 74 | V76: 0.002055555556 | W76: 0.9612616959 | X76: 0.9612616959 | Z76: 2.055555556
U77: 75 | V77: 0.002083333333 | W77: 0.9659258263 | X77: 0.9659258263 | Z77: 2.083333333
U78: 76 | V78: 0.002111111111 | W78: 0.9702957263 | X78: 0.9702957263 | Z78: 2.111111111
U79: 77 | V79: 0.002138888889 | W79: 0.9743700648 | X79: 0.9743700648 | Z79: 2.138888889
U80: 78 | V80: 0.002166666667 | W80: 0.9781476007 | X80: 0.9781476007 | Z80: 2.166666667
U81: 79 | V81: 0.002194444444 | W81: 0.9816271834 | X81: 0.9816271834 | Z81: 2.194444444
U82: 80 | V82: 0.002222222222 | W82: 0.984807753 | X82: 0.984807753 | Z82: 2.222222222
U83: 81 | V83: 0.00225 | W83: 0.9876883406 | X83: 0.9876883406 | Z83: 2.25
U84: 82 | V84: 0.002277777778 | W84: 0.9902680687 | X84: 0.9902680687 | Z84: 2.277777778
U85: 83 | V85: 0.002305555556 | W85: 0.9925461516 | X85: 0.9925461516 | Z85: 2.305555556
U86: 84 | V86: 0.002333333333 | W86: 0.9945218954 | X86: 0.9945218954 | Z86: 2.333333333
U87: 85 | V87: 0.002361111111 | W87: 0.9961946981 | X87: 0.9961946981 | Z87: 2.361111111
U88: 86 | V88: 0.002388888889 | W88: 0.9975640503 | X88: 0.9975640503 | Z88: 2.388888889
U89: 87 | V89: 0.002416666667 | W89: 0.9986295348 | X89: 0.9986295348 | Z89: 2.416666667
U90: 88 | V90: 0.002444444444 | W90: 0.999390827 | X90: 0.999390827 | Z90: 2.444444444
U91: 89 | V91: 0.002472222222 | W91: 0.9998476952 | X91: 0.9998476952 | Z91: 2.472222222
U92: 90 | V92: 0.0025 | W92: 1 | X92: 1 | Z92: 2.5
U93: 91 | V93: 0.002527777778 | W93: 0.9998476952 | X93: 0.9998476952 | Z93: 2.527777778
U94: 92 | V94: 0.002555555556 | W94: 0.999390827 | X94: 0.999390827 | Z94: 2.555555556
U95: 93 | V95: 0.002583333333 | W95: 0.9986295348 | X95: 0.9986295348 | Z95: 2.583333333
U96: 94 | V96: 0.002611111111 | W96: 0.9975640503 | X96: 0.9975640503 | Z96: 2.611111111
U97: 95 | V97: 0.002638888889 | W97: 0.9961946981 | X97: 0.9961946981 | Z97: 2.638888889
U98: 96 | V98: 0.002666666667 | W98: 0.9945218954 | X98: 0.9945218954 | Z98: 2.666666667
U99: 97 | V99: 0.002694444444 | W99: 0.9925461516 | X99: 0.9925461516 | Z99: 2.694444444
U100: 98 | V100: 0.002722222222 | W100: 0.9902680687 | X100: 0.9902680687 | Z100: 2.722222222
U101: 99 | V101: 0.00275 | W101: 0.9876883406 | X101: 0.9876883406 | Z101: 2.75
U102: 100 | V102: 0.002777777778 | W102: 0.984807753 | X102: 0.984807753 | Z102: 2.777777778
U103: 101 | V103: 0.002805555556 | W103: 0.9816271834 | X103: 0.9816271834 | Z103: 2.805555556
U104: 102 | V104: 0.002833333333 | W104: 0.9781476007 | X104: 0.9781476007 | Z104: 2.833333333
U105: 103 | V105: 0.002861111111 | W105: 0.9743700648 | X105: 0.9743700648 | Z105: 2.861111111
U106: 104 | V106: 0.002888888889 | W106: 0.9702957263 | X106: 0.9702957263 | Z106: 2.888888889
U107: 105 | V107: 0.002916666667 | W107: 0.9659258263 | X107: 0.9659258263 | Z107: 2.916666667
U108: 106 | V108: 0.002944444444 | W108: 0.9612616959 | X108: 0.9612616959 | Z108: 2.944444444
U109: 107 | V109: 0.002972222222 | W109: 0.956304756 | X109: 0.956304756 | Z109: 2.972222222
U110: 108 | V110: 0.003 | W110: 0.9510565163 | X110: 0.9510565163 | Z110: 3
U111: 109 | V111: 0.003027777778 | W111: 0.9455185756 | X111: 0.9455185756 | Z111: 3.027777778
U112: 110 | V112: 0.003055555556 | W112: 0.9396926208 | X112: 0.9396926208 | Z112: 3.055555556
U113: 111 | V113: 0.003083333333 | W113: 0.9335804265 | X113: 0.9335804265 | Z113: 3.083333333
U114: 112 | V114: 0.003111111111 | W114: 0.9271838546 | X114: 0.9271838546 | Z114: 3.111111111
U115: 113 | V115: 0.003138888889 | W115: 0.9205048535 | X115: 0.9205048535 | Z115: 3.138888889
U116: 114 | V116: 0.003166666667 | W116: 0.9135454576 | X116: 0.9135454576 | Z116: 3.166666667
U117: 115 | V117: 0.003194444444 | W117: 0.906307787 | X117: 0.906307787 | Z117: 3.194444444
U118: 116 | V118: 0.003222222222 | W118: 0.8987940463 | X118: 0.8987940463 | Z118: 3.222222222
U119: 117 | V119: 0.00325 | W119: 0.8910065242 | X119: 0.8910065242 | Z119: 3.25
U120: 118 | V120: 0.003277777778 | W120: 0.8829475929 | X120: 0.8829475929 | Z120: 3.277777778
U121: 119 | V121: 0.003305555556 | W121: 0.8746197071 | X121: 0.8746197071 | Z121: 3.305555556
U122: 120 | V122: 0.003333333333 | W122: 0.8660254038 | X122: 0.8660254038 | Z122: 3.333333333
U123: 121 | V123: 0.003361111111 | W123: 0.8571673007 | X123: 0.8571673007 | Z123: 3.361111111
U124: 122 | V124: 0.003388888889 | W124: 0.8480480962 | X124: 0.8480480962 | Z124: 3.388888889
U125: 123 | V125: 0.003416666667 | W125: 0.8386705679 | X125: 0.8386705679 | Z125: 3.416666667
U126: 124 | V126: 0.003444444444 | W126: 0.8290375726 | X126: 0.8290375726 | Z126: 3.444444444
U127: 125 | V127: 0.003472222222 | W127: 0.8191520443 | X127: 0.8191520443 | Z127: 3.472222222
U128: 126 | V128: 0.0035 | W128: 0.8090169944 | X128: 0.8090169944 | Z128: 3.5
U129: 127 | V129: 0.003527777778 | W129: 0.79863551 | X129: 0.79863551 | Z129: 3.527777778
U130: 128 | V130: 0.003555555556 | W130: 0.7880107536 | X130: 0.7880107536 | Z130: 3.555555556
U131: 129 | V131: =(U131/360)*R$2 -> 0.003583333333 | W131: =SIN((((2*PI())*$D$4)*($V131-($D$6/1000)))+$R$1) -> 0.7771459615 | X131: =SIN((((2*PI())*$F$4)*($V131-($F$6/1000)))+$R$3) -> 0.7771459615 | Z131: =1000*($U131/360)*$R$2 -> 3.583333333
U132: 130 | V132: 0.003611111111 | W132: 0.7660444431 | X132: 0.7660444431 | Z132: 3.611111111
U133: =U132+1 -> 131 | V133: 0.003638888889 | W133: 0.7547095802 | X133: 0.7547095802 | Z133: 3.638888889
U134: 132 | V134: 0.003666666667 | W134: 0.7431448255 | X134: 0.7431448255 | Z134: 3.666666667
U135: 133 | V135: 0.003694444444 | W135: 0.7313537016 | X135: 0.7313537016 | Z135: 3.694444444
U136: 134 | V136: 0.003722222222 | W136: 0.7193398003 | X136: 0.7193398003 | Z136: 3.722222222
U137: 135 | V137: 0.00375 | W137: 0.7071067812 | X137: 0.7071067812 | Z137: 3.75
U138: 136 | V138: 0.003777777778 | W138: 0.6946583705 | X138: 0.6946583705 | Z138: 3.777777778
U139: 137 | V139: 0.003805555556 | W139: 0.6819983601 | X139: 0.6819983601 | Z139: 3.805555556
U140: 138 | V140: 0.003833333333 | W140: 0.6691306064 | X140: 0.6691306064 | Z140: 3.833333333
U141: 139 | V141: 0.003861111111 | W141: 0.656059029 | X141: 0.656059029 | Z141: 3.861111111
U142: 140 | V142: 0.003888888889 | W142: 0.6427876097 | X142: 0.6427876097 | Z142: 3.888888889
U143: 141 | V143: 0.003916666667 | W143: 0.629320391 | X143: 0.629320391 | Z143: 3.916666667
U144: 142 | V144: 0.003944444444 | W144: 0.6156614753 | X144: 0.6156614753 | Z144: 3.944444444
U145: 143 | V145: 0.003972222222 | W145: 0.6018150232 | X145: 0.6018150232 | Z145: 3.972222222
U146: 144 | V146: 0.004 | W146: 0.5877852523 | X146: 0.5877852523 | Z146: 4
U147: 145 | V147: 0.004027777778 | W147: 0.5735764364 | X147: 0.5735764364 | Z147: 4.027777778
U148: 146 | V148: 0.004055555556 | W148: 0.5591929035 | X148: 0.5591929035 | Z148: 4.055555556
U149: 147 | V149: 0.004083333333 | W149: 0.544639035 | X149: 0.544639035 | Z149: 4.083333333
U150: 148 | V150: 0.004111111111 | W150: 0.5299192642 | X150: 0.5299192642 | Z150: 4.111111111
U151: 149 | V151: 0.004138888889 | W151: 0.5150380749 | X151: 0.5150380749 | Z151: 4.138888889
U152: 150 | V152: 0.004166666667 | W152: 0.5 | X152: 0.5 | Z152: 4.166666667
U153: 151 | V153: 0.004194444444 | W153: 0.4848096202 | X153: 0.4848096202 | Z153: 4.194444444
U154: 152 | V154: 0.004222222222 | W154: 0.4694715628 | X154: 0.4694715628 | Z154: 4.222222222
U155: 153 | V155: 0.00425 | W155: 0.4539904997 | X155: 0.4539904997 | Z155: 4.25
U156: 154 | V156: 0.004277777778 | W156: 0.4383711468 | X156: 0.4383711468 | Z156: 4.277777778
U157: 155 | V157: 0.004305555556 | W157: 0.4226182617 | X157: 0.4226182617 | Z157: 4.305555556
U158: 156 | V158: 0.004333333333 | W158: 0.4067366431 | X158: 0.4067366431 | Z158: 4.333333333
U159: 157 | V159: 0.004361111111 | W159: 0.3907311285 | X159: 0.3907311285 | Z159: 4.361111111
U160: 158 | V160: 0.004388888889 | W160: 0.3746065934 | X160: 0.3746065934 | Z160: 4.388888889
U161: 159 | V161: 0.004416666667 | W161: 0.3583679495 | X161: 0.3583679495 | Z161: 4.416666667
U162: 160 | V162: 0.004444444444 | W162: 0.3420201433 | X162: 0.3420201433 | Z162: 4.444444444
U163: 161 | V163: 0.004472222222 | W163: 0.3255681545 | X163: 0.3255681545 | Z163: 4.472222222
U164: 162 | V164: 0.0045 | W164: 0.3090169944 | X164: 0.3090169944 | Z164: 4.5
U165: 163 | V165: 0.004527777778 | W165: 0.2923717047 | X165: 0.2923717047 | Z165: 4.527777778
U166: 164 | V166: 0.004555555556 | W166: 0.2756373558 | X166: 0.2756373558 | Z166: 4.555555556
U167: 165 | V167: 0.004583333333 | W167: 0.2588190451 | X167: 0.2588190451 | Z167: 4.583333333
U168: 166 | V168: 0.004611111111 | W168: 0.2419218956 | X168: 0.2419218956 | Z168: 4.611111111
U169: 167 | V169: 0.004638888889 | W169: 0.2249510543 | X169: 0.2249510543 | Z169: 4.638888889
U170: 168 | V170: 0.004666666667 | W170: 0.2079116908 | X170: 0.2079116908 | Z170: 4.666666667
U171: 169 | V171: 0.004694444444 | W171: 0.1908089954 | X171: 0.1908089954 | Z171: 4.694444444
U172: 170 | V172: 0.004722222222 | W172: 0.1736481777 | X172: 0.1736481777 | Z172: 4.722222222
U173: 171 | V173: 0.00475 | W173: 0.156434465 | X173: 0.156434465 | Z173: 4.75
U174: 172 | V174: 0.004777777778 | W174: 0.139173101 | X174: 0.139173101 | Z174: 4.777777778
U175: 173 | V175: 0.004805555556 | W175: 0.1218693434 | X175: 0.1218693434 | Z175: 4.805555556
U176: 174 | V176: 0.004833333333 | W176: 0.1045284633 | X176: 0.1045284633 | Z176: 4.833333333
U177: 175 | V177: 0.004861111111 | W177: 0.08715574275 | X177: 0.08715574275 | Z177: 4.861111111
U178: 176 | V178: 0.004888888889 | W178: 0.06975647374 | X178: 0.06975647374 | Z178: 4.888888889
U179: 177 | V179: 0.004916666667 | W179: 0.05233595624 | X179: 0.05233595624 | Z179: 4.916666667
U180: 178 | V180: 0.004944444444 | W180: 0.0348994967 | X180: 0.0348994967 | Z180: 4.944444444
U181: 179 | V181: 0.004972222222 | W181: 0.01745240644 | X181: 0.01745240644 | Z181: 4.972222222
U182: 180 | V182: 0.005 | W182: 1.225148455e-16 | X182: 1.225148455e-16 | Z182: 5
U183: 181 | V183: 0.005027777778 | W183: -0.01745240644 | X183: -0.01745240644 | Z183: 5.027777778
U184: 182 | V184: 0.005055555556 | W184: -0.0348994967 | X184: -0.0348994967 | Z184: 5.055555556
U185: 183 | V185: 0.005083333333 | W185: -0.05233595624 | X185: -0.05233595624 | Z185: 5.083333333
U186: 184 | V186: 0.005111111111 | W186: -0.06975647374 | X186: -0.06975647374 | Z186: 5.111111111
U187: 185 | V187: 0.005138888889 | W187: -0.08715574275 | X187: -0.08715574275 | Z187: 5.138888889
U188: 186 | V188: 0.005166666667 | W188: -0.1045284633 | X188: -0.1045284633 | Z188: 5.166666667
U189: 187 | V189: 0.005194444444 | W189: -0.1218693434 | X189: -0.1218693434 | Z189: 5.194444444
U190: 188 | V190: 0.005222222222 | W190: -0.139173101 | X190: -0.139173101 | Z190: 5.222222222
U191: 189 | V191: 0.00525 | W191: -0.156434465 | X191: -0.156434465 | Z191: 5.25
U192: 190 | V192: 0.005277777778 | W192: -0.1736481777 | X192: -0.1736481777 | Z192: 5.277777778
U193: 191 | V193: 0.005305555556 | W193: -0.1908089954 | X193: -0.1908089954 | Z193: 5.305555556
U194: 192 | V194: 0.005333333333 | W194: -0.2079116908 | X194: -0.2079116908 | Z194: 5.333333333
U195: 193 | V195: =(U195/360)*R$2 -> 0.005361111111 | W195: =SIN((((2*PI())*$D$4)*($V195-($D$6/1000)))+$R$1) -> -0.2249510543 | X195: =SIN((((2*PI())*$F$4)*($V195-($F$6/1000)))+$R$3) -> -0.2249510543 | Z195: =1000*($U195/360)*$R$2 -> 5.361111111
U196: 194 | V196: 0.005388888889 | W196: -0.2419218956 | X196: -0.2419218956 | Z196: 5.388888889
U197: =U196+1 -> 195 | V197: 0.005416666667 | W197: -0.2588190451 | X197: -0.2588190451 | Z197: 5.416666667
U198: 196 | V198: 0.005444444444 | W198: -0.2756373558 | X198: -0.2756373558 | Z198: 5.444444444
U199: 197 | V199: 0.005472222222 | W199: -0.2923717047 | X199: -0.2923717047 | Z199: 5.472222222
U200: 198 | V200: 0.0055 | W200: -0.3090169944 | X200: -0.3090169944 | Z200: 5.5
... 162 more rows

Sheet c (hidden)
A1: circle engine | I1: Programming notes | P1: No. | Q1: Sound Sources | R1: Phase shift | S1: =IF(Calculator!Z1="feet","pos-feet",IF(Calculator!Z1="meters","pos-meters","--")) -> pos-feet | V1: Polarity | W1: Delay (s) | X1: Attenuation | AA1: Freq | AB1: Amp | AC1: Phase
A2: point of origin | R2: (rad) | S2: x | T2: y | U2: z | V2: +/-
A3: a | B3: =Calculator!$C$16 -> 0 | D3: frequency | E3: =Calculator!$C$34 -> 100 | I3: # of calculated angle | L3: =360/$B$6 -> 72 | P3: 1 | Q3: 0 | R3: =RADIANS(Calculator!$C22) -> 0 | S3: =IF(Calculator!$Z$1="feet",Calculator!D22/12,IF(Calculator!$Z$1="meters",Calculator!D22/100,"--")) -> 0 | T3: =IF(Calculator!$Z$1="feet",Calculator!E22/12,IF(Calculator!$Z$1="meters",Calculator!E22/100,"--")) -> 0 | U3: =IF(Calculator!$Z$1="feet",Calculator!F22/12,IF(Calculator!$Z$1="meters",Calculator!F22/100,"--")) -> 0 | V3: 1 | W3: =Calculator!H22*(1/1000) -> 0 | X3: =10^(ABS(Calculator!I22)/20) -> 1
A4: b | B4: =Calculator!$C$17 -> 0 | I4: Pi value | L4: =PI() -> 3.141592654 | P4: 2 | Q4: 0 | R4: =RADIANS(Calculator!$C23) -> 0 | S4: =IF(Calculator!$Z$1="feet",Calculator!D23/12,IF(Calculator!$Z$1="meters",Calculator!D23/100,"--")) -> 0 | T4: =IF(Calculator!$Z$1="feet",Calculator!E23/12,IF(Calculator!$Z$1="meters",Calculator!E23/100,"--")) -> 0 | U4: =IF(Calculator!$Z$1="feet",Calculator!F23/12,IF(Calculator!$Z$1="meters",Calculator!F23/100,"--")) -> 0 | V4: 1 | W4: =Calculator!H23*(1/1000) -> 0 | X4: =10^(ABS(Calculator!I23)/20) -> 1
A5: radius | B5: =Calculator!$C$15 -> 40 | P5: 3 | Q5: 0 | R5: =RADIANS(Calculator!$C24) -> 0 | S5: =IF(Calculator!$Z$1="feet",Calculator!D24/12,IF(Calculator!$Z$1="meters",Calculator!D24/100,"--")) -> 0 | T5: =IF(Calculator!$Z$1="feet",Calculator!E24/12,IF(Calculator!$Z$1="meters",Calculator!E24/100,"--")) -> 0 | U5: =IF(Calculator!$Z$1="feet",Calculator!F24/12,IF(Calculator!$Z$1="meters",Calculator!F24/100,"--")) -> 0 | V5: 1 | W5: =Calculator!H24*(1/1000) -> 0 | X5: =10^(ABS(Calculator!I24)/20) -> 1
A6: angle | B6: =Calculator!$Z$2 -> 5 | C6: deg | P6: 4 | Q6: 0 | R6: =RADIANS(Calculator!$C25) -> 0 | S6: =IF(Calculator!$Z$1="feet",Calculator!D25/12,IF(Calculator!$Z$1="meters",Calculator!D25/100,"--")) -> 0 | T6: =IF(Calculator!$Z$1="feet",Calculator!E25/12,IF(Calculator!$Z$1="meters",Calculator!E25/100,"--")) -> 0 | U6: =IF(Calculator!$Z$1="feet",Calculator!F25/12,IF(Calculator!$Z$1="meters",Calculator!F25/100,"--")) -> 0 | V6: 1 | W6: =Calculator!H25*(1/1000) -> 0 | X6: =10^(ABS(Calculator!I25)/20) -> 1
A7: c | B7: =Calculator!$C$18 -> 0 | P7: 5 | Q7: 0 | R7: =RADIANS(Calculator!$C26) -> 0 | S7: =IF(Calculator!$Z$1="feet",Calculator!D26/12,IF(Calculator!$Z$1="meters",Calculator!D26/100,"--")) -> 0 | T7: =IF(Calculator!$Z$1="feet",Calculator!E26/12,IF(Calculator!$Z$1="meters",Calculator!E26/100,"--")) -> 0 | U7: =IF(Calculator!$Z$1="feet",Calculator!F26/12,IF(Calculator!$Z$1="meters",Calculator!F26/100,"--")) -> 0 | V7: 1 | W7: =Calculator!H26*(1/1000) -> 0 | X7: =10^(ABS(Calculator!I26)/20) -> 1
A8: speed | B8: =Calculator!C14 -> 1128.116267 | P8: 6 | Q8: 0 | R8: =RADIANS(Calculator!$C27) -> 0 | S8: =IF(Calculator!$Z$1="feet",Calculator!D27/12,IF(Calculator!$Z$1="meters",Calculator!D27/100,"--")) -> 0 | T8: =IF(Calculator!$Z$1="feet",Calculator!E27/12,IF(Calculator!$Z$1="meters",Calculator!E27/100,"--")) -> 0 | U8: =IF(Calculator!$Z$1="feet",Calculator!F27/12,IF(Calculator!$Z$1="meters",Calculator!F27/100,"--")) -> 0 | V8: 1 | W8: =Calculator!H27*(1/1000) -> 0 | X8: =10^(ABS(Calculator!I27)/20) -> 1
A9: Distance position | P9: 7 | Q9: 0 | R9: =RADIANS(Calculator!$C28) -> 0 | S9: =IF(Calculator!$Z$1="feet",Calculator!D28/12,IF(Calculator!$Z$1="meters",Calculator!D28/100,"--")) -> 0 | T9: =IF(Calculator!$Z$1="feet",Calculator!E28/12,IF(Calculator!$Z$1="meters",Calculator!E28/100,"--")) -> 0 | U9: =IF(Calculator!$Z$1="feet",Calculator!F28/12,IF(Calculator!$Z$1="meters",Calculator!F28/100,"--")) -> 0 | V9: 1 | W9: =Calculator!H28*(1/1000) -> 0 | X9: =10^(ABS(Calculator!I28)/20) -> 1
A10: angle | B10: x | C10: y | D10: z | E10: Amplitude squared | F10: Log Amplitude | G10: Normalized | H10: Ref Distance | I10: bandmin | J10: bandcen | K10: bandmax | L10: average | M10: squared | N10: Log amp | P10: 8 | Q10: 0 | R10: =RADIANS(Calculator!$C29) -> 0 | S10: =IF(Calculator!$Z$1="feet",Calculator!D29/12,IF(Calculator!$Z$1="meters",Calculator!D29/100,"--")) -> 0 | T10: =IF(Calculator!$Z$1="feet",Calculator!E29/12,IF(Calculator!$Z$1="meters",Calculator!E29/100,"--")) -> 0 | U10: =IF(Calculator!$Z$1="feet",Calculator!F29/12,IF(Calculator!$Z$1="meters",Calculator!F29/100,"--")) -> 0 | V10: 1 | W10: =Calculator!H29*(1/1000) -> 0 | X10: =10^(ABS(Calculator!I29)/20) -> 1 | AF10: AF10-AK10 are reserved!!
L11: =AVERAGE(I11:K11) ->  | M11: =L11^2 ->  | N11: =IF(M11<>0,5*LOG10(M11),-1000) ->  | P11: 9 | Q11: 0 | R11: =RADIANS(Calculator!$C30) -> 0 | S11: =IF(Calculator!$Z$1="feet",Calculator!D30/12,IF(Calculator!$Z$1="meters",Calculator!D30/100,"--")) -> 0 | T11: =IF(Calculator!$Z$1="feet",Calculator!E30/12,IF(Calculator!$Z$1="meters",Calculator!E30/100,"--")) -> 0 | U11: =IF(Calculator!$Z$1="feet",Calculator!F30/12,IF(Calculator!$Z$1="meters",Calculator!F30/100,"--")) -> 0 | V11: 1 | W11: =Calculator!H30*(1/1000) -> 0 | X11: =10^(ABS(Calculator!I30)/20) -> 1
L12: =AVERAGE(I12:K12) ->  | M12: =L12^2 ->  | N12: =IF(M12<>0,5*LOG10(M12),-1000) ->  | P12: 10 | Q12: 0 | R12: =RADIANS(Calculator!$C31) -> 0 | S12: =IF(Calculator!$Z$1="feet",Calculator!D31/12,IF(Calculator!$Z$1="meters",Calculator!D31/100,"--")) -> 0 | T12: =IF(Calculator!$Z$1="feet",Calculator!E31/12,IF(Calculator!$Z$1="meters",Calculator!E31/100,"--")) -> 0 | U12: =IF(Calculator!$Z$1="feet",Calculator!F31/12,IF(Calculator!$Z$1="meters",Calculator!F31/100,"--")) -> 0 | V12: 1 | W12: =Calculator!H31*(1/1000) -> 0 | X12: =10^(ABS(Calculator!I31)/20) -> 1
L76: =AVERAGE(I76:K76) ->  | M76: =L76^2 ->  | N76: =IF(M76<>0,5*LOG10(M76),-1000) -> 
L140: =AVERAGE(I140:K140) ->  | M140: =L140^2 ->  | N140: =IF(M140<>0,5*LOG10(M140),-1000) -> 
A1094: DEVELOPER: HADI SUMORO 2008-2009
A1095: HTTP://WWW.HADISUMORO.COM

Sheet Notes and Instructions
B11: S u b w o o f e r S t e e r in g S i m u l a t i o n S o f t w a r e
B12: v1.3
B15: Requirements
B16: * | C16: Microsoft Excel 2003 and/or 2007 (PC version)
B17: * | C17: Active content/macro has to be enabled
C18: Excel 2003 users can activate this feature with Tools Menu > Macro > Security > (low)
C19: Excel 2007 users will be prompted to activate the active content upon opening
B22: Spreadsheet General Information
B23: * | C23: Adjust the zoom percentage to accommodate easier viewing.
B24: * | C24: 1600 x 1280 or higher screen resolution is recommended.
B25: * | C25: Please do not change values in the black cells. Input cells are indicated by (dark) blue color.
B26: * | C26: This Excel file contains three spreadsheets:
B27: 1. | C27: Quick Start Spreadsheet
C28: > this spreadsheet provides a quick start for the main spreadsheet (Calculator Spreadsheet)
B29: 2. | C29: Calculator Spreadsheet
C30: > 2D Polar Prediction for Multiple Point Sources Calculator
C31: > this spreadsheet is controlled by Quick Start Spreadsheet
B32: 3. | C32: Frequency Response Spreadsheet
C33: > this spreadsheet calculates the frequency and phase response based on input values in Calculator Spreadsheet
B34: 4. | C34: Informational Article
B37: Application Notes
B39: 1. | C39: Community 2D Polar Prediction for Multiple Point Sources is a tool to predict sound radiation pattern based on
C40: omnidirectional sound sources (assuming flat frequency and phase response at all frequencies).
B41: 2. | C41: Averaging is calculated using three sine waves which frequency is the center-band, lower-band, and upper-band
C42: based on the selected bandwidth average (shown in Advance mode).
B43: 3. | C43: Frequency and phase response calculation are performed using Discreet Fourier Transform. Choosing a higher
C44: frequency to plot without changing number of sample will result in lower frequency resolution (shown in Advance mode).
B45: 4. | C45: All calculations are assuming freespace and no boundary loading for each point source.
B46: 5. | C46: Inverse square law loss due to distance is not calculated in the Frequency Response spreadsheet. Inverse Square Law
C47: option (shown in Advance mode) is calculating SPL adjustment between the mic/listener and each loudspeaker.
B48: 6. | C48: To see the frequency response of the rear attenuation, go to the “Frequency Response” spreadsheet and type in a
C49: negative distance in the “Listener Position (X)” field (the arrangement should be calculated using "Quick Start" spreadsheet).
B52: Known Issues
B54: 1. | C54: Radio buttons/Scroll Bars cannot be selected.
C55: > Macro is not activated. Please see Instruction under "Requirements".
C56: > A cell is still active, please press Enter after inputting any values in a cell.
B57: 2. | C57: Sliders/Scroll Bars do not change the value.
C58: > Sliders/Scroll Bars often lag in Excel, please move them more than once to change the value correctly.
B59: 3. | C59: Slow process in the Frequency Response spreadsheet.
C60: > The speed of the calculation is controlled by the number of samples. This control is located below the phase
C61: response graph. Recommended setup: Max Frequency: <500Hz, Number of Samples: 128.
C62: > Changing max frequency to plot (shown in Advance mode) will not affect the calculation speed.
B63: 4. | C63: Frequency Response Graph is not smooth
C64: > Please increase the frequency resolution by decreasing the maximum frequency to plot or increasing the
C65: number of samples.
C92: Written by Hadi Sumoro
C93: Version: 1.3 Alpha#2, Feb 2009
A342: Developer: Hadi Sumoro 2008-2009

Sheet Info
B8: Informational Article
B10: Notes and Instructions
B11: Subwoofer Placement & Setup | J11: Polar Pattern | AB11: Stage-Audience | AC11: Frequency Response
J12: (Freespace without Boundary Loading) | AC12: Red - Frequency Response Prediction in the Audience Area
J13: 50Hz | P13: 80Hz | V13: 110Hz | AB13: Orientation | AC13: Blue - Frequency Response Prediction on the Stage
AM14: Red - 50ft away from the stage
AB19: Ceiling
AB20: Stage
AB22: Audience | AM22: Blue - 20ft behind the subwoofer
AB23: Floor
AM29: Red - 50ft away from the stage
AB34: Ceiling
AB35: Stage
AB37: Audience | AM37: Blue - 20ft behind the sub arrangement
AB38: Floor
AM44: Red - 50ft away from the stage
AB49: Ceiling
AB50: Stage
AB52: Audience | AM52: Blue - 20ft behind the sub arrangement
AB53: Floor
B59: Vertical steering calculation is not supported in Quick Start | AM59: Red - 50ft front and 10ft below the center of the stack
AB64: Ceiling
AB65: Stage
AM66: Blue - 20ft behind the center of the stack
AB67: Audience
AB68: Floor
AM74: Red - 50ft away from the stage
AB79: Ceiling
AB80: Stage
AB82: Audience | AM82: Blue - 20ft behind the sub arrangement
AB83: Floor
B89: Notes and Instructions
B135: Calculator Spreadsheet
B136: Quick Start Spreadsheet
B137: Notes and Instructions
